bitfinex/quotes_SOLUSD_20250525
["timestamp","ask_amount","ask_price","bid_price","bid_amount"]
[1748185818826,2.1441953,170.5,170.49,157.46]
[1748185819524,0.14216157,170.5,170.49,157.46]
[1748185819728,18.79181043,170.5,170.49,157.46]
[1748185820225,0.14216157,170.5,170.49,84.3]
[1748185820428,18.79181043,170.5,170.49,157.46]
[1748185820842,23.06902584,170.5,170.49,157.46]
[1748185821150,25.21322114,170.5,170.49,157.46]
[1748185821949,25.21322114,170.5,170.49,122.32]
[1748185822243,32.95902114,170.5,170.49,157.46]
[1748185822433,18.79181043,170.46,170.45,84.32]
[1748185822632,18.79181043,170.46,170.45,38.04]
[1748185823153,20.93600573,170.46,170.45,38.04]
[1748185823444,24.22470901,170.46,170.45,38.04]
[1748185823655,24.22470901,170.46,170.45,73.18]
[1748185823951,28.50192442,170.46,170.45,73.18]
[1748185824545,28.50192442,170.46,170.45,38.04]
[1748185824762,28.50192442,170.46,170.45,73.18]
[1748185827267,9.85227556,170.46,170.45,73.18]
[1748185827475,9.85227556,170.46,170.45,157.52]
[1748185827861,25.21322114,170.46,170.45,157.52]
[1748185829261,25.21322114,170.46,170.45,84.34]
[1748185829461,32.61333458,170.46,170.45,157.52]
[1748185831280,13.96368572,170.46,170.45,157.52]
[1748185831467,28.50192442,170.46,170.45,157.52]
[1748185832054,9.85227556,170.46,170.45,157.52]
[1748185832253,28.50192442,170.46,170.45,157.52]
[1748185832553,25.21322114,170.46,170.45,157.52]
[1748185833697,28.50192442,170.46,170.45,122.38]
[1748185834190,28.50192442,170.46,170.45,157.52]
[1748185834860,54.50192442,170.46,170.45,157.52]
[1748185836264,58.61333458,170.46,170.45,157.52]
[1748185836783,13.96368572,170.46,170.45,157.52]
[1748185836967,10.67498244,170.46,170.45,157.52]
[1748185838396,6.56357228,170.46,170.45,157.52]
[1748185840879,10.67498244,170.46,170.45,157.52]
[1748185841081,29.3246313,170.46,170.45,157.52]
[1748185842390,192.2246313,170.46,170.45,122.38]
[1748185842598,192.2246313,170.46,170.45,157.54]
[1748185842790,192.2246313,170.46,170.45,122.38]
[1748185843093,191.40192442,170.46,170.45,157.54]
[1748185850599,30.10722442,170.46,170.45,123.58]
[1748185850798,30.10722442,170.46,170.45,158.74]
[1748185851101,18.79181043,170.42,170.3,82.985795]
[1748185851281,18.79181043,170.38,170.31,39.24]
[1748185851788,2.1441953,170.37,170.31,39.24]
[1748185852092,6.42141071,170.37,170.32,35.16]
[1748185852690,0.14216157,170.35,170.32,35.16]
[1748185853086,0.14216157,170.35,170.33,35.16]
[1748185853502,4.41937698,170.35,170.33,35.16]
[1748185854400,0.14216157,170.35,170.33,35.16]
[1748185855607,4.41937698,170.35,170.33,35.16]
[1748185856214,0.14216157,170.35,170.33,35.16]
[1748185856883,4.27721541,170.36,170.33,35.16]
[1748185857599,4.27721541,170.36,170.34,84.38]
[1748185858587,6.42141071,170.37,170.34,84.38]
[1748185859005,4.27721541,170.37,170.34,84.38]
[1748185859506,4.27721541,170.4,170.34,84.38]
[1748185859816,0.14216157,170.39,170.34,84.38]
[1748185860116,4.41937698,170.39,170.34,84.38]
[1748185861109,4.27721541,170.38,170.34,84.38]
[1748185862209,4.27721541,170.37,170.34,84.38]
[1748185863322,4.27721541,170.36,170.34,84.38]
[1748185863893,49.06902584,170.35,170.34,84.38]
[1748185864096,49.06902584,170.35,170.34,123.64]
[1748185864398,49.06902584,170.35,170.34,158.8]
[1748185864807,52.35772912,170.35,170.34,158.8]
[1748185865007,54.50937018,170.35,170.34,158.8]
[1748185865707,13.98657245,170.35,170.34,158.8]
[1748185867088,10.5557076,170.35,170.34,158.8]
[1748185868416,6.42885647,170.35,170.34,158.8]
[1748185868612,6.42885647,170.37,170.34,158.8]
[1748185869403,4.27721541,170.37,170.34,158.8]
[1748185870589,4.12685113,170.38,170.34,158.8]
[1748185870794,4.12685113,170.38,170.37,26.0]
[1748185871118,4.27721541,170.41,170.39,26.0]
[1748185871284,7.56591869,170.44,170.43,26.0]
[1748185872129,4.12685113,170.45,170.43,26.0]
[1748185872329,4.12685113,170.45,170.44,35.16]
[1748185873509,4.30284262,170.48,170.44,35.16]
[1748185873711,2.15292236,170.49,170.44,35.16]
[1748185873920,4.30284262,170.51,170.44,35.16]
[1748185876821,6.45576498,170.52,170.44,35.16]
[1748185879524,6.45576498,170.52,170.47,26.0]
[1748185879699,2.15292236,170.52,170.48,123.28]
[1748185879901,2.15292236,170.52,170.49,35.14]
[1748185880300,4.12685113,170.56,170.49,35.14]
[1748185880500,8.4143244,170.56,170.49,35.14]
[1748185881103,2.15292236,170.55,170.49,35.14]
[1748185881409,6.44039563,170.55,170.49,35.14]
[1748185881826,4.28747327,170.55,170.49,35.14]
[1748185882005,26.0,170.54,170.49,35.14]
[1748185882726,26.0,170.56,170.49,35.14]
[1748185883130,20.93301236,170.55,170.48,123.28]
[1748185883325,20.93301236,170.55,170.49,35.14]
[1748185883706,24.22171564,170.55,170.49,35.14]
[1748185884217,2.14120193,170.54,170.49,35.14]
[1748185884418,6.42213921,170.54,170.49,35.14]
[1748185885819,4.28093728,170.54,170.49,35.14]
[1748185886423,30.28093728,170.54,170.49,35.14]
[1748185887026,26.0,170.54,170.49,35.14]
[1748185887230,0.14216157,170.53,170.49,35.14]
[1748185887725,0.14216157,170.53,170.48,123.28]
[1748185887908,0.14216157,170.53,170.49,35.14]
[1748185888319,26.0,170.54,170.49,35.14]
[1748185892443,18.79181043,170.53,170.5,35.14]
[1748185892619,18.79181043,170.53,170.51,35.14]
[1748185892818,0.14216157,170.5,170.48,84.34]
[1748185893019,0.14216157,170.5,170.49,74.08]
[1748185894940,1.6635,170.52,170.49,74.08]
[1748185895643,2.13553436,170.52,170.49,74.08]
[1748185896337,0.14216157,170.53,170.49,74.08]
[1748185896537,6.40669239,170.54,170.49,74.08]
[1748185897245,6.2026,170.55,170.49,74.08]
[1748185898042,0.14216157,170.56,170.49,74.08]
[1748185899247,4.41630191,170.56,170.49,74.08]
[1748185900159,4.27414034,170.56,170.49,74.08]
[1748185900460,0.14216157,170.59,170.49,74.66626519]
[1748185900654,0.14216157,170.59,170.49,74.08]
[1748185901153,2.28081631,170.59,170.49,74.08]
[1748185901337,6.55826589,170.59,170.49,74.08]
[1748185901854,6.55826589,170.59,170.5,38.92]
[1748185903143,6.55826589,170.59,170.51,35.12]
[1748185904070,18.64964886,170.58,170.51,35.12]
[1748185905171,0.14216157,170.56,170.51,35.12]
[1748185905471,0.14216157,170.56,170.47,108.13972003]
[1748185905773,0.14216157,170.56,170.48,73.54]
[1748185907174,0.14216157,170.56,170.48,38.42]
[1748185907471,0.14216157,170.56,170.49,119.42]
[1748185907965,18.79181043,170.56,170.5,35.12]
[1748185908469,0.14216157,170.54,170.5,35.12]
[1748185910561,0.14216157,170.54,170.51,35.12]
[1748185911174,0.14216157,170.54,170.49,84.3]
[1748185911465,4.41961115,170.54,170.5,35.12]
[1748185912272,4.27744958,170.53,170.5,35.12]
[1748185912653,4.27744958,170.52,170.5,35.12]
[1748185913570,4.27744958,170.51,170.5,35.12]
[1748185913762,4.27744958,170.51,170.49,84.3]
[1748185913951,4.27744958,170.51,170.5,35.12]
[1748185914956,4.27744958,170.53,170.5,35.12]
[1748185915677,4.27744958,170.52,170.5,35.12]
[1748185917661,6.4165502,170.54,170.5,35.12]
[1748185918603,4.27744958,170.53,170.5,35.12]
[1748185919083,6.4715666,170.52,170.5,35.12]
[1748185919386,4.31427017,170.51,170.5,35.12]
[1748185920092,4.31427017,170.55,170.5,35.12]
[1748185920273,6.47182014,170.55,170.5,35.12]
[1748185920753,4.31427017,170.54,170.5,35.12]
[1748185920952,6.47182014,170.54,170.5,35.12]
[1748185921382,4.31427017,170.53,170.5,118.60624672]
[1748185921569,4.31427017,170.53,170.52,26.0]
[1748185921877,4.31427017,170.53,170.52,108.9]
[1748185922366,4.31427017,170.54,170.52,108.9]
[1748185923063,4.31427017,170.54,170.53,73.54]
[1748185923286,6.47182014,170.54,170.53,73.54]
[1748185924292,9.7553431,170.54,170.53,73.54]
[1748185925360,6.47182014,170.54,170.53,73.54]
[1748185926185,9.7553431,170.54,170.53,73.54]
[1748185926989,9.89750467,170.54,170.53,73.54]
[1748185927486,9.89750467,170.54,170.49,84.3]
[1748185927487,0.14216157,170.53,170.49,84.3]
[1748185927709,18.64964886,170.52,170.5,38.42]
[1748185927986,20.9493604,170.52,170.51,35.12]
[1748185928562,25.26363057,170.52,170.51,35.12]
[1748185929183,28.54715353,170.52,170.51,35.12]
[1748185931103,9.7553431,170.52,170.51,35.12]
[1748185932788,9.89750467,170.52,170.51,35.12]
[1748185932971,14.03468774,170.52,170.51,35.12]
[1748185933662,0.14216157,170.51,170.5,38.42]
[1748185933979,5.5832345,170.51,170.5,73.54]
[1748185934591,9.89750467,170.51,170.5,73.54]
[1748185935789,14.03468774,170.51,170.5,73.54]
[1748185939997,32.6843366,170.51,170.5,73.54]
[1748185940201,39.1646366,170.51,170.5,38.42]
[1748185940384,39.1646366,170.51,170.5,73.56]
[1748185940586,35.02745353,170.51,170.5,73.56]
[1748185942393,16.37780467,170.51,170.5,73.56]
[1748185944500,9.89750467,170.51,170.5,73.56]
[1748185945206,6.61398171,170.51,170.5,73.56]
[1748185946971,6.61398171,170.51,170.5,73.38]
[1748185947173,31.81943057,170.51,170.49,84.3]
[1748185947484,188.65747094,170.5,170.49,84.3]
[1748185947790,18.79181043,170.45,170.34,82.9]
[1748185947981,18.79181043,170.45,170.35,38.24]
[1748185948177,0.14216157,170.43,170.35,38.24]
[1748185948486,2.15754997,170.42,170.35,38.24]
[1748185948886,4.31427017,170.41,170.36,35.14]
[1748185949087,4.31427017,170.41,170.36,118.04]
[1748185949579,4.31427017,170.42,170.36,118.04]
[1748185949781,0.14216157,170.41,170.36,82.9]
[1748185949982,18.79181043,170.41,170.35,38.24]
[1748185950189,18.79181043,170.41,170.37,35.14]
[1748185950384,6.47182014,170.4,170.37,35.14]
[1748185950799,0.14216157,170.38,170.37,35.14]
[1748185950995,18.79181043,170.38,170.35,38.24]
[1748185951202,18.79181043,170.38,170.37,35.14]
[1748185951579,44.79181043,170.36,170.3,0.085795]
[1748185951806,44.79181043,170.36,170.31,73.38]
[1748185952011,0.14216157,170.34,170.31,73.38]
[1748185952511,0.14216157,170.34,170.31,38.24]
[1748185952698,0.14216157,170.34,170.32,35.14]
[1748185953201,2.29971154,170.34,170.31,38.24]
[1748185953508,18.79181043,170.33,170.31,38.24]
[1748185953715,23.1060806,170.32,170.31,38.24]
[1748185953888,23.1060806,170.32,170.31,73.4]
[1748185954385,25.26363057,170.32,170.31,38.24]
[1748185954590,25.26363057,170.32,170.31,73.4]
[1748185954988,28.54715353,170.32,170.31,73.4]
[1748185955183,9.89750467,170.32,170.31,73.4]
[1748185955413,9.7553431,170.32,170.31,73.4]
[1748185955594,7.7399547,170.32,170.31,73.4]
[1748185955916,3.42568453,170.32,170.31,73.4]
[1748185956283,0.14216157,170.32,170.31,73.4]
[1748185956810,49.1060806,170.32,170.31,73.4]
[1748185957588,6.58616043,170.32,170.31,73.4]
[1748185958295,4.45643174,170.32,170.31,73.4]
[1748185958497,0.14216157,170.32,170.31,73.4]
[1748185960013,0.14216157,170.31,170.3,0.085795]
[1748185960312,0.14216157,170.32,170.3,0.085795]
[1748185960313,0.14216157,170.32,170.3,73.505795]
[1748185960818,18.79181043,170.31,170.3,73.505795]
[1748185961203,0.14216157,170.31,170.3,73.505795]
[1748185962508,0.14216157,170.32,170.3,73.505795]
[1748185962708,9.81936826,170.37,170.3,73.505795]
[1748185962911,0.14216157,170.36,170.3,73.505795]
[1748185963111,3.26356826,170.37,170.3,73.505795]
[1748185963433,4.12499653,170.38,170.3,73.505795]
[1748185963918,4.12499653,170.38,170.33,26.0]
[1748185964124,4.12499653,170.38,170.34,35.16]
[1748185964616,18.79181043,170.41,170.34,35.16]
[1748185967407,18.79181043,170.39,170.34,35.16]
[1748185967906,18.79181043,170.39,170.35,35.16]
[1748185968107,26.14216157,170.37,170.36,38.86]
[1748185968920,51.44851043,170.37,170.36,38.86]
[1748185969127,51.44851043,170.37,170.36,74.02]
[1748185969311,32.79886157,170.37,170.36,74.02]
[1748185969510,37.05381027,170.37,170.36,74.02]
[1748185970517,55.70345913,170.37,170.36,74.02]
[1748185971100,57.83117002,170.37,170.36,74.02]
[1748185972431,55.70345913,170.37,170.36,74.02]
[1748185972802,37.05381027,170.37,170.36,74.02]
[1748185973002,4.39711027,170.37,170.36,74.02]
[1748185973817,0.14216157,170.37,170.36,74.02]
[1748185975533,18.79181043,170.37,170.36,74.02]
[1748185975737,0.14216157,170.33,170.3,0.085795]
[1748185977229,23.0515089,170.33,170.32,35.16]
[1748185978214,23.0515089,170.33,170.31,38.86]
[1748185978415,23.0515089,170.33,170.32,35.16]
[1748185980037,4.40186004,170.33,170.32,35.16]
[1748185980340,30.40186004,170.33,170.32,35.16]
[1748185981743,26.14216157,170.33,170.32,35.16]
[1748185983442,0.14216157,170.35,170.32,35.16]
[1748185984025,4.26796779,170.35,170.32,35.16]
[1748185984646,0.14216157,170.38,170.32,35.16]
[1748185985030,3.27799873,170.39,170.32,35.16]
[1748185985529,2.27775692,170.4,170.32,35.16]
[1748185985736,6.55109258,170.4,170.32,35.16]
[1748185986224,0.14216157,170.39,170.32,35.16]
[1748185986734,2.27775692,170.39,170.32,35.16]
[1748185987232,6.55109258,170.39,170.32,35.16]
[1748185989543,6.55109258,170.39,170.3,0.085795]
[1748185989544,0.14216157,170.37,170.3,0.085795]
[1748185989750,2.27775692,170.37,170.33,74.02]
[1748185990244,6.55109258,170.37,170.33,74.02]
[1748185991942,13.99129526,170.39,170.33,74.02]
[1748185991943,4.27333566,170.36,170.33,74.02]
[1748185992151,4.27333566,170.36,170.33,74.60682535]
[1748185992618,6.40893101,170.38,170.33,74.60682535]
[1748185993340,6.40893101,170.38,170.34,44.64964886]
[1748185993674,7.40299526,170.43,170.34,44.64964886]
[1748185993675,6.40893101,170.42,170.34,44.64964886]
[1748185993830,6.40893101,170.42,170.34,127.54964886]
[1748185995246,4.27333566,170.42,170.34,127.54964886]
[1748185995544,0.14216157,170.41,170.34,26.0]
[1748185996434,4.41549723,170.41,170.34,26.0]
[1748185997052,0.14216157,170.41,170.34,26.0]
[1748185997422,6.40893101,170.43,170.34,26.0]
[1748185997622,0.14216157,170.42,170.34,26.0]
[1748185997838,4.41549723,170.42,170.34,26.0]
[1748185998649,0.14216157,170.42,170.34,26.0]
[1748185999843,6.40893101,170.43,170.34,26.0]
[1748186000052,0.14216157,170.42,170.34,26.0]
[1748186000229,6.40893101,170.44,170.34,26.0]
[1748186000430,0.14216157,170.43,170.35,84.38]
[1748186001153,0.14216157,170.41,170.35,84.38]
[1748186001846,4.27333566,170.42,170.35,84.38]
[1748186002671,4.27333566,170.43,170.35,84.38]
[1748186003257,2.13559535,170.42,170.35,84.38]
[1748186003629,4.29017084,170.41,170.35,84.38]
[1748186004143,4.29017084,170.4,170.35,84.38]
[1748186004834,6.43525552,170.43,170.35,84.38]
[1748186005037,4.29017084,170.43,170.35,84.38]
[1748186005844,0.14216157,170.41,170.35,84.38]
[1748186006932,0.14216157,170.41,170.36,73.72]
[1748186007134,18.79181043,170.41,170.36,38.56]
[1748186007351,0.14216157,170.38,170.37,35.16]
[1748186007756,20.93689511,170.38,170.35,84.38]
[1748186007962,26.14216157,170.36,170.35,84.38]
[1748186008142,6.1121,170.35,170.32,84.36]
[1748186008342,46.42041043,170.33,170.32,84.36]
[1748186008542,46.42041043,170.33,170.32,158.08]
[1748186008755,53.98858,170.33,170.32,158.08]
[1748186008939,56.13366468,170.33,170.32,158.08]
[1748186009542,9.71325425,170.33,170.32,158.08]
[1748186010245,9.85541582,170.33,170.32,158.08]
[1748186010852,6.57741709,170.33,170.32,158.08]
[1748186012963,51.22706595,170.33,170.32,84.36]
[1748186013147,51.22706595,170.33,170.32,158.08]
[1748186013738,6.57741709,170.33,170.32,158.08]
[1748186013968,6.43525552,170.33,170.32,158.08]
[1748186015957,2.14508468,170.33,170.32,158.08]
[1748186016342,0.14216157,170.34,170.32,158.08]
[1748186022955,26.0,170.33,170.32,158.08]
[1748186023155,30.29017084,170.33,170.32,158.08]
[1748186023358,32.43525552,170.33,170.32,158.08]
[1748186025468,32.57741709,170.33,170.32,122.92]
[1748186025655,32.57741709,170.33,170.32,158.08]
[1748186026747,32.57741709,170.33,170.32,122.92]
[1748186026948,32.57741709,170.33,170.32,158.08]
[1748186028250,32.43525552,170.33,170.32,158.08]
[1748186030266,6.43525552,170.33,170.32,158.08]
[1748186030574,4.12499653,170.34,170.32,158.08]
[1748186030763,26.0,170.38,170.32,158.08]
[1748186030967,2.14467533,170.37,170.32,240.98]
[1748186031264,26.0,170.36,170.32,240.98]
[1748186031469,26.0,170.36,170.33,0.58686099]
[1748186032171,4.12499653,170.39,170.33,0.58686099]
[1748186032371,4.12499653,170.39,170.33,83.48686099]
[1748186032553,30.12499653,170.39,170.33,83.48686099]
[1748186032873,26.0,170.39,170.33,83.48686099]
[1748186034689,26.0,170.41,170.34,18.64964886]
[1748186034984,26.0,170.41,170.35,35.16]
[1748186035343,3.27799873,170.46,170.36,23.21517797]
[1748186035651,5.42297748,170.46,170.36,49.21517797]
[1748186036269,5.42297748,170.46,170.4,18.64964886]
[1748186036450,3.27799873,170.46,170.42,18.64964886]
[1748186036652,4.12499653,170.47,170.43,0.58643289]
[1748186038375,26.14216157,170.53,170.43,0.58643289]
[1748186038675,4.28287426,170.52,170.43,0.58643289]
[1748186039551,26.14216157,170.53,170.43,0.58643289]
[1748186040569,0.14216157,170.53,170.43,0.58643289]
[1748186040967,26.0,170.54,170.43,0.58643289]
[1748186041166,23.07028104,170.53,170.44,35.14]
[1748186041358,25.20946654,170.53,170.44,35.14]
[1748186041984,26.14216157,170.49,170.45,38.3]
[1748186042188,0.14216157,170.47,170.46,122.64]
[1748186042555,2.28134707,170.47,170.46,122.64]
[1748186046786,0.14216157,170.47,170.46,122.64]
[1748186048584,1.5916,170.48,170.46,122.64]
[1748186049079,6.3996,170.5,170.46,122.64]
[1748186049268,0.14216157,170.49,170.46,122.64]
[1748186053576,44.79181043,170.49,170.46,122.64]
[1748186053778,18.79181043,170.47,170.46,122.64]
[1748186054082,18.79181043,170.47,170.46,157.78]
[1748186054277,23.05959188,170.47,170.46,157.78]
[1748186054579,25.19371283,170.47,170.46,157.78]
[1748186054776,6.54406397,170.47,170.46,157.78]
[1748186054972,2.27628252,170.47,170.46,157.78]
[1748186055471,0.14216157,170.47,170.46,157.78]
[1748186062314,4.27071551,170.49,170.46,157.78]
[1748186062483,0.14216157,170.51,170.46,157.78]
[1748186065295,0.14216157,170.51,170.46,84.34]
[1748186065497,18.79181043,170.51,170.47,73.42]
[1748186067003,4.27633661,170.5,170.47,73.42]
[1748186068384,2.28158643,170.51,170.47,73.42]
[1748186070983,0.14216157,170.51,170.47,73.42]
[1748186072512,2.28483432,170.51,170.47,73.42]
[1748186072677,2.28483432,170.51,170.46,84.34]
[1748186072884,0.14216157,170.49,170.47,73.4]
[1748186073387,2.28483432,170.49,170.48,35.14]
[1748186073915,5.56698969,170.49,170.48,35.14]
[1748186074211,9.8433263,170.49,170.48,35.14]
[1748186075019,28.49297516,170.49,170.48,35.14]
[1748186085014,18.79181043,170.48,170.47,38.26]
[1748186085715,25.21081979,170.48,170.47,38.26]
[1748186086110,28.49297516,170.48,170.47,73.4]
[1748186086803,26.0,170.43,170.35,0.5955]
[1748186087107,0.14216157,170.4,170.36,84.34]
[1748186087289,0.14216157,170.4,170.37,73.3]
[1748186087688,0.14216157,170.38,170.37,73.3]
[1748186088314,2.28483432,170.38,170.37,73.3]
[1748186088521,6.56117093,170.38,170.37,73.3]
[1748186089421,4.41849818,170.38,170.37,73.3]
[1748186089808,6.56117093,170.38,170.37,73.3]
[1748186090512,4.41849818,170.38,170.37,73.3]
[1748186091418,4.41849818,170.38,170.37,38.16]
[1748186091628,4.41849818,170.38,170.37,73.3]
[1748186092117,4.41849818,170.38,170.37,38.16]
[1748186092315,23.06814704,170.38,170.37,73.32]
[1748186092828,25.21081979,170.38,170.37,73.32]
[1748186093522,44.79181043,170.37,170.36,84.34]
[1748186093914,44.79181043,170.37,170.36,157.68]
[1748186093915,49.06814704,170.37,170.36,157.68]
[1748186094115,51.21081979,170.37,170.36,157.68]
[1748186094313,32.56117093,170.37,170.36,157.68]
[1748186094516,35.8433263,170.37,170.36,157.68]
[1748186094829,9.8433263,170.37,170.36,157.68]
[1748186095018,5.56698969,170.37,170.36,157.68]
[1748186095613,2.28483432,170.37,170.36,157.68]
[1748186095818,28.28483432,170.37,170.36,157.68]
[1748186096020,26.14216157,170.37,170.36,157.68]
[1748186096221,6.41900936,170.38,170.36,157.68]
[1748186096533,2.14267275,170.38,170.36,157.68]
[1748186096826,7.4159084,170.39,170.36,157.68]
[1748186097031,0.14216157,170.41,170.36,157.68]
[1748186097235,4.42987982,170.41,170.36,157.68]
[1748186097614,6.57373986,170.41,170.36,157.68]
[1748186098613,0.14216157,170.41,170.36,157.68]
[1748186102536,18.79181043,170.41,170.36,84.34]
[1748186102736,4.28771825,170.4,170.37,73.34]
[1748186103122,6.43061625,170.4,170.37,73.34]
[1748186103526,6.43061625,170.4,170.37,73.92691933]
[1748186103717,3.28215537,170.42,170.37,73.92691933]
[1748186103913,4.28771825,170.43,170.37,73.34]
[1748186104513,0.14216157,170.44,170.37,73.34]
[1748186106118,6.43113698,170.45,170.37,73.92669785]
[1748186106317,6.43113698,170.45,170.37,99.92669785]
[1748186106523,2.14341873,170.45,170.38,3.3833]
[1748186106722,2.14341873,170.45,170.39,0.58660016]
[1748186106926,3.28215537,170.46,170.4,35.16]
[1748186107142,4.28771825,170.47,170.4,35.16]
[1748186107550,0.14216157,170.46,170.4,35.16]
[1748186108342,2.14450167,170.47,170.4,35.16]
[1748186109227,0.14216157,170.48,170.4,35.16]
[1748186109948,3.28215537,170.49,170.41,1.18204773]
[1748186110133,6.57966681,170.5,170.41,1.18204773]
[1748186110329,26.0,170.49,170.41,1.18204773]
[1748186110545,0.14216157,170.5,170.41,1.18204773]
[1748186110925,30.13375303,170.51,170.41,84.08204773]
[1748186111124,26.0,170.51,170.41,84.08204773]
[1748186112148,2.14647386,170.5,170.41,84.08204773]
[1748186112332,6.43876697,170.5,170.41,84.08204773]
[1748186112832,4.29229311,170.5,170.41,84.08204773]
[1748186114952,0.14216157,170.51,170.41,84.08204773]
[1748186118129,6.43925582,170.52,170.44,26.0]
[1748186118334,6.43925582,170.52,170.45,73.18]
[1748186118535,4.29229311,170.52,170.45,73.18]
[1748186118735,6.43925582,170.53,170.46,0.58638141]
[1748186119353,4.29229311,170.53,170.46,0.58638141]
[1748186119658,0.14216157,170.53,170.46,0.58638141]
[1748186121747,0.14216157,170.53,170.47,84.32]
[1748186121943,2.14696271,170.54,170.47,84.32]
[1748186122449,2.14696271,170.54,170.48,0.5863471]
[1748186122649,4.29229311,170.55,170.48,0.5863471]
[1748186122650,2.14696271,170.55,170.48,110.0818471]
[1748186123269,4.29229311,170.57,170.48,110.0818471]
[1748186123559,6.35716157,170.56,170.49,73.18]
[1748186124069,0.14216157,170.54,170.49,73.18]
[1748186133853,0.14216157,170.54,170.5,84.3]
[1748186136171,0.14216157,170.54,170.51,35.14]
[1748186136671,6.43478784,170.55,170.52,0.58636152]
[1748186136850,4.29229311,170.55,170.52,0.58636152]
[1748186137158,4.29229311,170.55,170.54,26.0]
[1748186137549,3.28215537,170.57,170.54,26.0]
[1748186137748,3.28215537,170.57,170.55,38.02]
[1748186137963,3.28215537,170.57,170.56,35.14]
[1748186138369,0.14216157,170.61,170.56,35.14]
[1748186139073,1.6057,170.63,170.56,35.14]
[1748186139273,0.14216157,170.62,170.56,35.14]
[1748186140262,0.14216157,170.62,170.57,35.12]
[1748186140771,0.14216157,170.62,170.54,26.0]
[1748186140772,18.79181043,170.62,170.51,0.58614464]
[1748186140973,0.14216157,170.6,170.52,73.14]
[1748186141553,0.14216157,170.6,170.53,35.12]
[1748186141975,2.28451979,170.6,170.53,35.12]
[1748186142674,0.14216157,170.6,170.53,35.12]
[1748186142876,2.28701392,170.6,170.53,35.12]
[1748186144378,6.57287257,170.6,170.53,35.12]
[1748186147579,0.14216157,170.58,170.53,35.12]
[1748186148379,4.42802022,170.58,170.53,35.12]
[1748186149181,0.14216157,170.58,170.53,35.12]
[1748186149856,4.28585865,170.57,170.53,35.12]
[1748186151885,4.28585865,170.56,170.53,35.12]
[1748186152376,4.28585865,170.56,170.54,0.58612612]
[1748186153371,4.28585865,170.59,170.55,84.28]
[1748186154173,4.28585865,170.58,170.55,84.28]
[1748186154873,4.28585865,170.59,170.55,84.28]
[1748186155670,4.28585865,170.6,170.55,84.28]
[1748186156075,6.430711,170.6,170.55,84.28]
[1748186156483,4.28585865,170.59,170.55,84.28]
[1748186157576,4.28585865,170.6,170.56,0.58604939]
[1748186158372,2.14485235,170.61,170.56,0.58604939]
[1748186158987,6.430711,170.62,170.56,0.58604939]
[1748186159190,6.430711,170.62,170.56,83.48604939]
[1748186160089,4.28585865,170.62,170.56,83.48604939]
[1748186160472,4.28585865,170.63,170.56,83.48604939]
[1748186161689,4.28585865,170.62,170.56,83.48604939]
[1748186162471,4.28585865,170.64,170.56,83.48604939]
[1748186163095,6.430711,170.64,170.56,83.48604939]
[1748186163392,4.28585865,170.63,170.56,83.48604939]
[1748186164194,6.430711,170.64,170.56,83.48604939]
[1748186165089,4.28585865,170.63,170.56,83.48604939]
[1748186165892,4.28585865,170.64,170.56,83.48604939]
[1748186166795,4.28585865,170.63,170.56,83.48604939]
[1748186167898,4.28585865,170.64,170.57,37.98]
[1748186168092,4.28585865,170.64,170.58,35.12]
[1748186168880,4.28585865,170.63,170.58,35.12]
[1748186169401,4.28585865,170.64,170.58,118.02]
[1748186169581,4.28585865,170.63,170.58,118.02]
[1748186170399,4.28585865,170.64,170.58,118.02]
[1748186170992,4.28585865,170.63,170.58,118.02]